bitfinex-derivatives/quotes_ETHF0:USTF0_20240817
["timestamp","ask_amount","ask_price","bid_price","bid_amount"]
[1723871179322,4.43960224,2599.6,2599.5,0.00945286]
[1723871180216,5.03866151,2599.6,2599.5,0.00945286]
[1723871180821,5.03866151,2599.6,2599.5,0.73795286]
[1723871181720,2.51682339,2599.6,2599.5,0.73795286]
[1723871182928,5.03920402,2599.6,2599.5,0.73795286]
[1723871183125,4.68450402,2599.6,2599.5,0.73795286]
[1723871183526,2.16212339,2599.6,2599.5,0.73795286]
[1723871183730,4.68446092,2599.6,2599.5,0.73795286]
[1723871184123,4.44511753,2599.6,2599.5,0.73795286]
[1723871184331,4.68443805,2599.6,2599.5,0.73795286]
[1723871184530,4.68461278,2599.6,2599.5,0.73795286]
[1723871184733,1.92278,2599.6,2599.5,0.73795286]
[1723871184934,2.16211068,2599.6,2599.5,0.73795286]
[1723871185535,4.68467136,2599.6,2599.5,0.73795286]
[1723871185837,2.16211068,2599.6,2599.5,0.73795286]
[1723871186038,1.92278,2599.6,2599.5,0.73795286]
[1723871186226,2.16210333,2599.6,2599.5,0.73795286]
[1723871188441,1.92278,2599.6,2599.5,0.73795286]
[1723871188736,2.16210258,2599.6,2599.5,0.73795286]
[1723871196928,1.92278,2599.6,2599.5,0.73795286]
[1723871197133,2.16210003,2599.6,2599.5,0.73795286]
[1723871198439,2.16210003,2599.6,2599.5,0.00945286]
[1723871200444,6.00930003,2599.6,2599.5,0.00945286]
[1723871200631,5.76998,2599.6,2599.5,0.00945286]
[1723871200941,6.00932693,2599.6,2599.5,0.00945286]
[1723871201137,6.0093264,2599.6,2599.5,0.00945286]
[1723871201743,6.00932585,2599.6,2599.5,0.00945286]
[1723871202937,5.76998,2599.6,2599.5,0.00945286]
[1723871203141,6.0093261,2599.6,2599.5,0.00945286]
[1723871203541,2.1621261,2599.6,2599.5,0.00945286]
[1723871205443,1.92278,2599.6,2599.5,0.00945286]
[1723871205750,2.16212594,2599.6,2599.5,0.00945286]
[1723871206137,1.92278,2599.6,2599.5,0.00945286]
[1723871206343,2.16212865,2599.6,2599.5,0.00945286]
[1723871207235,2.16212865,2599.6,2599.5,0.35765286]
[1723871207436,2.16212865,2599.6,2599.5,0.73385286]
[1723871207846,0.23934865,2599.6,2599.5,7.61190286]
[1723871208047,2.52295821,2599.7,2599.6,1.92278]
[1723871208345,2.52295821,2599.8,2599.6,4.03869621]
[1723871210247,1.51256382,2599.8,2599.7,13.35972578]
[1723871210438,1.51256382,2599.8,2599.7,16.78467804]
[1723871210635,1.51256382,2599.9,2599.8,1.92263]
[1723871210841,1.51256382,2599.9,2599.8,6.33640173]
[1723871211046,1.51256382,2599.9,2599.8,14.35894939]
[1723871211736,2.01754741,2600.0,2599.9,1.92256]
[1723871212047,2.01754741,2600.0,2599.9,3.30021011]
[1723871212236,4.44529821,2600.2,2599.9,6.14026]
[1723871212237,2.01754741,2600.1,2599.9,6.14026]
[1723871212438,2.01754741,2600.0,2599.9,2.29386]
[1723871212639,2.01754741,2600.0,2599.9,0.3713]
[1723871212845,2.01754741,2600.0,2599.9,4.2177]
[1723871213746,2.01754741,2600.0,2599.9,0.3713]
[1723871213947,2.01754741,2600.0,2599.9,6.14026]
[1723871214146,2.01754741,2600.1,2599.9,6.14026]
[1723871214337,2.01754741,2600.2,2600.1,1.92241]
[1723871214542,2.01754741,2600.3,2600.2,1.92234]
[1723871214843,1.51111515,2600.3,2600.2,3.03034]
[1723871215340,12.94154741,2600.4,2600.2,3.03034]
[1723871215341,12.43511515,2600.4,2600.2,3.39594]
[1723871215545,12.43511515,2600.4,2600.3,0.347]
[1723871215744,1.51111515,2600.4,2600.3,0.347]
[1723871217145,1.51111515,2600.5,2600.3,0.347]
[1723871217639,3.43323515,2600.5,2600.3,0.347]
[1723871218147,1.51111515,2600.4,2600.3,0.347]
[1723871219136,1.00567113,2600.4,2600.3,0.347]
[1723871219350,3.43323515,2600.5,2600.3,0.347]
[1723871219747,1.00567858,2600.4,2600.3,0.347]
[1723871220653,3.43323515,2600.5,2600.3,0.347]
[1723871221147,1.00564518,2600.4,2600.3,0.347]
[1723871222748,1.00564518,2600.4,2600.3,6.11486]
[1723871222946,1.00564518,2600.5,2600.3,6.11486]
[1723871223154,1.00564518,2600.5,2600.4,1.108]
[1723871223957,1.00564518,2600.5,2600.4,1.4796]
[1723871224147,1.00564518,2600.5,2600.4,5.3252]
[1723871224454,3.79938515,2600.6,2600.4,5.3252]
[1723871224455,3.29391518,2600.6,2600.4,5.3252]
[1723871224661,3.29391518,2600.6,2600.4,1.4796]
[1723871225046,1.92211,2600.5,2600.4,1.4796]
[1723871225256,2.92775518,2600.5,2600.4,1.4796]
[1723871225551,2.92775518,2600.5,2600.4,5.3252]
[1723871226454,1.92211,2600.5,2600.4,5.3252]
[1723871227352,1.92219,2600.4,2600.2,1.4736]
[1723871227553,2.28239,2600.4,2600.2,1.4736]
[1723871227853,0.3713,2600.3,2600.2,1.8254]
[1723871229356,0.3713,2600.3,2600.2,5.671]
[1723871229551,0.3713,2600.3,2600.2,1.8254]
[1723871229953,0.3713,2600.3,2600.2,5.671]
[1723871230559,0.3713,2600.3,2600.2,1.8254]
[1723871234662,0.7365,2600.3,2600.2,1.8254]
[1723871238765,2.65876,2600.3,2600.2,1.8254]
[1723871239063,0.7365,2600.3,2600.2,1.8254]
[1723871239252,1.92217,2600.5,2600.3,1.92225]
[1723871239456,1.92217,2600.5,2600.4,1.4569]
[1723871241360,2.27917,2600.6,2600.4,1.4569]
[1723871241560,3.28481518,2600.6,2600.4,1.4569]
[1723871241862,1.00564518,2600.7,2600.5,0.3689]
[1723871242063,6.13353849,2601.0,2600.6,4.6721]
[1723871242064,0.00299108,2601.0,2600.6,4.6721]
[1723871242259,0.00299108,2601.0,2600.9,6.23762]
[1723871242759,0.00299108,2601.0,2600.9,13.99889362]
[1723871243664,0.00299108,2601.0,2600.9,18.99889362]
[1723871244870,0.00299108,2601.0,2600.9,17.89089362]
[1723871245060,0.00299108,2601.0,2600.9,18.99889362]
[1723871245263,0.00299108,2601.0,2600.9,10.96907362]
[1723871245469,0.00299108,2601.0,2600.9,5.02447362]
[1723871245767,0.00299108,2601.0,2600.9,8.86927362]
[1723871246156,0.00299108,2601.0,2600.9,9.21927362]
[1723871246463,0.00299108,2601.0,2600.9,3.91647362]
[1723871246464,1.92473108,2601.0,2600.9,3.91647362]
[1723871246664,1.92473108,2601.0,2600.9,5.02447362]
[1723871246962,1.92473108,2601.0,2600.9,1.108]
[1723871247165,1.92473108,2601.0,2600.9,5.23188038]
[1723871247565,1.92473108,2601.0,2600.9,4.12388038]
[1723871249656,2.93037626,2601.0,2600.9,4.12388038]
[1723871251458,2.93037626,2601.0,2600.9,1.108]
[1723871251663,1.92473108,2601.0,2600.9,1.108]
[1723871252268,2.93037626,2601.0,2600.9,1.108]
[1723871253970,1.92473108,2601.0,2600.9,1.108]
[1723871254160,3.43584623,2601.0,2600.9,1.108]
[1723871254663,2.92949523,2601.0,2600.9,1.108]
[1723871255373,1.00795299,2601.0,2600.9,1.108]
[1723871255773,2.92969299,2601.0,2600.9,1.108]
[1723871258677,1.00795299,2601.0,2600.9,1.108]
[1723871258866,2.92969299,2601.0,2600.9,1.108]
[1723871259268,1.00795299,2601.0,2600.9,1.108]
[1723871259774,3.43587623,2601.0,2600.7,1.92193]
[1723871259973,1.37647284,2600.9,2600.8,1.108]
[1723871262275,1.37647284,2600.9,2600.8,1.4735]
[1723871263369,1.37647284,2600.9,2600.8,1.108]
[1723871265478,1.37647284,2600.9,2600.8,1.4697]
[1723871267779,1.00527284,2600.9,2600.8,1.4697]
[1723871268582,1.00527284,2600.9,2600.8,11.52462827]
[1723871268872,1.00527284,2600.9,2600.8,9.60273827]
[1723871269972,1.00527284,2600.9,2600.8,5.75793827]
[1723871270871,1.51111515,2600.9,2600.8,4.28823827]
[1723871271078,1.51111515,2600.9,2600.8,5.39623827]
[1723871271377,3.43590623,2601.0,2600.8,5.39623827]
[1723871271680,1.51111515,2600.9,2600.8,5.39623827]
[1723871272270,3.43293515,2600.9,2600.8,5.39623827]
[1723871272477,3.79053515,2600.9,2600.8,4.28823827]
[1723871272667,3.79053515,2600.9,2600.8,1.108]
[1723871276084,1.86871515,2600.9,2600.8,1.108]
[1723871276479,1.51111515,2600.9,2600.8,1.108]
[1723871276783,3.43293515,2600.9,2600.8,5.47593932]
[1723871277279,1.51111515,2600.9,2600.8,5.47593932]
[1723871277682,3.43293515,2600.9,2600.8,5.47593932]
[1723871277884,1.51111515,2600.9,2600.8,5.47593932]
[1723871278080,3.43293515,2600.9,2600.8,5.47593932]
[1723871279477,3.93936741,2600.9,2600.8,1.108]
[1723871279673,4.30596741,2600.9,2600.8,1.108]
[1723871281581,1.92194,2600.8,2600.7,1.108]
[1723871281883,2.26514,2600.8,2600.7,1.108]
[1723871282086,3.77505355,2600.8,2600.7,1.108]
[1723871282278,2.26514,2600.8,2600.7,1.108]
[1723871283078,4.28268741,2600.8,2600.7,1.108]
[1723871283281,8.12745741,2600.8,2600.2,4.21415011]
[1723871283588,8.12745741,2600.8,2600.2,5.13014]
[1723871283589,1.51027376,2600.3,2600.2,5.13014]
[1723871283882,2.52295821,2600.6,2600.2,7.36102081]
[1723871283883,3.93591835,2600.4,2600.2,7.36102081]
[1723871284090,1.92226,2600.3,2600.2,7.36102081]
[1723871284390,2.27386,2600.3,2600.2,7.36102081]
[1723871285075,2.27386,2600.3,2600.2,8.46902081]
[1723871285076,0.7122,2600.3,2600.2,8.46902081]
[1723871285487,2.63446,2600.3,2600.2,8.46902081]
[1723871286194,4.64815835,2600.3,2600.2,8.46902081]
[1723871286483,8.49375835,2600.3,2600.2,4.3158]
[1723871287782,6.48006,2600.3,2600.2,4.3158]
[1723871288288,2.63446,2600.3,2600.2,4.3158]
[1723871288486,6.48006,2600.3,2600.2,4.3158]
[1723871289075,6.48006,2600.3,2600.2,1.108]
[1723871289275,7.9894245,2600.3,2600.2,1.108]
[1723871289484,2.63446,2600.3,2600.2,1.108]
[1723871289690,6.48006,2600.3,2600.2,1.108]
[1723871290390,2.63446,2600.3,2600.2,1.108]
[1723871290591,6.48006,2600.3,2600.2,1.108]
[1723871291892,7.98943661,2600.3,2600.2,1.108]
[1723871292594,4.14383661,2600.3,2600.2,1.108]
[1723871301206,4.64815835,2600.3,2600.2,1.108]
[1723871303092,1.92234,2600.2,2600.1,1.108]
[1723871303591,3.43060078,2600.2,2600.1,1.108]
[1723871303989,1.92234,2600.2,2600.1,1.108]
[1723871304704,3.43050794,2600.2,2600.1,1.108]
[1723871304999,1.92234,2600.2,2600.1,1.108]
[1723871305396,3.43043025,2600.2,2600.1,1.108]
[1723871306805,1.92234,2600.2,2600.1,1.108]
[1723871307308,3.43036808,2600.2,2600.1,1.108]
[1723871315502,1.50802808,2600.2,2600.1,1.108]
[1723871316105,3.43035808,2600.2,2600.1,1.108]
[1723871318412,1.92233,2600.2,2600.1,1.108]
[1723871321611,3.93602835,2600.2,2600.1,1.108]
[1723871324418,1.92233,2600.2,2600.1,1.108]
[1723871325415,4.44528821,2600.2,2600.1,1.108]
[1723871326616,4.44528821,2600.2,2600.0,1.108]
[1723871326617,1.92246,2600.1,2600.0,1.108]
[1723871326815,2.26616,2600.1,2600.0,1.108]
[1723871327119,2.26616,2600.1,2600.0,5.32072023]
[1723871327617,7.82105821,2600.1,2599.8,0.3668]
[1723871327918,1.92271,2599.7,2599.6,4.3158]
[1723871328121,1.92271,2599.7,2599.6,1.108]
[1723871328312,4.44215846,2599.7,2599.6,1.108]
[1723871328516,4.78585846,2599.7,2599.6,1.108]
[1723871328917,2.26641,2599.7,2599.6,1.108]
[1723871329116,4.78585846,2599.7,2599.6,1.108]
[1723871330722,2.26641,2599.7,2599.6,1.108]
[1723871332421,2.01484094,2599.7,2599.6,1.108]
[1723871335332,3.93747094,2599.8,2599.6,1.108]
[1723871335630,1.92263,2599.8,2599.7,1.108]
[1723871336438,3.93693089,2599.8,2599.7,1.108]
[1723871336730,1.92263,2599.8,2599.7,1.108]
[1723871336930,3.93694762,2599.8,2599.7,1.108]
[1723871338029,1.92276,2599.7,2599.5,0.00945286]
[1723871338232,1.87608179,2599.6,2599.5,0.00945286]
[1723871338429,1.87608179,2599.6,2599.5,1.49245286]
[1723871338627,1.87608179,2599.6,2599.5,9.66220475]
[1723871338833,2.24778179,2599.6,2599.5,9.66220475]
[1723871343637,1.88238179,2599.6,2599.5,9.66220475]
[1723871343838,1.88238179,2599.6,2599.5,10.01410475]
[1723871344741,3.80516179,2599.6,2599.5,10.01410475]
[1723871346838,4.30872238,2599.6,2599.5,1.11745286]
[1723871347241,2.29448,2599.6,2599.5,1.11745286]
[1723871352643,4.30872238,2599.6,2599.5,1.11745286]
[1723871353145,2.29448,2599.6,2599.5,1.11745286]
[1723871353537,4.30872238,2599.6,2599.5,1.11745286]
[1723871354038,2.29448,2599.6,2599.5,1.11745286]
[1723871358340,4.30872238,2599.6,2599.5,1.11745286]
[1723871358535,4.30872238,2599.6,2599.5,0.00945286]
[1723871360653,8.15592238,2599.6,2599.5,0.00945286]
[1723871361346,4.30872238,2599.6,2599.5,0.00945286]
[1723871366350,2.29448,2599.6,2599.5,0.00945286]
[1723871367049,6.14168,2599.6,2599.5,0.00945286]
[1723871367244,2.29448,2599.6,2599.5,0.00945286]
[1723871369451,4.81392846,2599.6,2599.5,0.00945286]
[1723871373255,2.53381054,2599.6,2599.5,0.00945286]
[1723871373556,5.05625193,2599.6,2599.5,0.00945286]
[1723871373951,2.53381054,2599.6,2599.5,0.00945286]
[1723871377359,2.53380999,2599.6,2599.5,0.00945286]
[1723871377560,5.05618621,2599.6,2599.5,0.00945286]
[1723871378258,4.81685622,2599.6,2599.5,0.00945286]
[1723871378561,4.44515622,2599.6,2599.5,1.11745286]
[1723871381056,2.52237622,2599.6,2599.5,1.11745286]
[1723871381455,2.52237622,2599.6,2599.5,3.04030286]
[1723871381652,4.44511622,2599.7,2599.5,1.11745286]
[1723871381862,4.44511622,2599.7,2599.6,0.7182]
[1723871382064,1.92274,2599.7,2599.6,1.0868]
[1723871382260,2.16203602,2599.7,2599.6,1.0868]
[1723871382457,0.23929602,2599.7,2599.6,1.0868]
[1723871385966,2.16200602,2599.7,2599.6,1.0868]
[1723871386856,0.23930248,2599.7,2599.6,1.0868]
[1723871387965,2.16201248,2599.7,2599.6,1.0868]
[1723871390570,2.16200888,2599.7,2599.6,1.0868]
[1723871392872,2.76197237,2599.7,2599.6,1.0868]
[1723871393373,2.52267349,2599.7,2599.6,1.0868]
[1723871393762,2.76195237,2599.7,2599.6,1.0868]
[1723871394867,2.76195935,2599.7,2599.6,1.0868]
[1723871395065,4.68466935,2599.7,2599.6,1.0868]
[1723871395667,4.44538349,2599.7,2599.6,1.0868]
[1723871396171,2.16198978,2599.7,2599.5,1.11745286]
[1723871396367,2.89201549,2599.6,2599.5,0.00945286]
[1723871396571,4.81479549,2599.6,2599.5,0.00945286]
[1723871396775,4.44529549,2599.6,2599.5,0.00945286]
[1723871398265,4.68460948,2599.6,2599.5,0.00945286]
[1723871398467,4.44529549,2599.6,2599.5,0.00945286]
[1723871398976,4.68460694,2599.6,2599.5,0.00945286]
[1723871401776,4.44529549,2599.6,2599.5,0.00945286]
[1723871402476,2.52251549,2599.6,2599.5,1.11745286]
[1723871402876,2.7618294,2599.6,2599.5,1.11745286]
[1723871403178,4.6846094,2599.6,2599.5,1.11745286]
[1723871405178,4.6846094,2599.6,2599.5,0.00945286]
[1723871406479,2.16210451,2599.6,2599.5,0.00945286]
[1723871410471,2.16210728,2599.6,2599.5,0.00945286]
[1723871412082,1.92278,2599.6,2599.5,0.00945286]
[1723871412290,2.16210549,2599.6,2599.5,0.00945286]
[1723871414484,8.80076,2599.6,2599.5,0.00945286]
[1723871414787,9.04013363,2599.6,2599.5,0.00945286]
[1723871414978,12.06373444,2599.6,2599.5,0.00945286]
[1723871415175,9.04013363,2599.6,2599.5,0.00945286]
[1723871415688,12.06373444,2599.6,2599.5,0.00945286]
[1723871416881,9.04013363,2599.6,2599.5,0.00945286]
[1723871417186,12.06373444,2599.6,2599.5,0.00945286]
[1723871417382,9.04013363,2599.6,2599.5,0.00945286]
[1723871417987,12.06373444,2599.6,2599.5,0.00945286]
[1723871418392,9.04013363,2599.6,2599.5,0.00945286]
[1723871422688,9.14013363,2599.6,2599.5,0.00945286]
[1723871423087,12.34793363,2599.6,2599.5,0.00945286]
[1723871423484,12.10856,2599.6,2599.5,0.00945286]
[1723871423693,12.34792794,2599.6,2599.5,0.00945286]
[1723871425589,17.34792794,2599.6,2599.5,0.00945286]
[1723871425786,14.21814738,2599.6,2599.5,0.00945286]
[1723871425988,7.21734794,2599.6,2599.5,0.00945286]
[1723871427192,7.21733817,2599.6,2599.5,0.00945286]
[1723871428185,9.14011817,2599.6,2599.5,0.00945286]
[1723871428390,15.37151898,2599.6,2599.5,0.00945286]
[1723871428992,12.24791817,2599.6,2599.5,0.00945286]
[1723871431296,12.24792923,2599.6,2599.5,0.00945286]
[1723871432900,1.92302,2599.3,2599.1,0.25345286]
[1723871433090,2.01584769,2599.2,2599.1,0.25345286]
[1723871433892,2.01584769,2599.2,2599.1,0.25652882]
[1723871435901,3.93892769,2599.2,2599.1,0.25652882]
[1723871446403,1.92308,2599.2,2599.1,0.25652882]
[1723871447899,5.55088962,2599.2,2599.1,0.25652882]
[1723871448299,4.44288962,2599.2,2599.1,0.25652882]
[1723871448708,4.81098962,2599.2,2599.1,0.25652882]
[1723871448905,7.48578883,2599.2,2599.1,0.25652882]
[1723871449315,6.37778883,2599.2,2599.1,0.25652882]
[1723871449518,4.68304256,2599.2,2599.1,0.25652882]
[1723871449705,2.52055373,2599.2,2599.1,0.25652882]
[1723871454216,4.44362373,2599.2,2599.1,0.25652882]
[1723871455610,4.68301568,2599.2,2599.1,0.25652882]
[1723871455907,2.52055373,2599.2,2599.1,0.25652882]
[1723871456112,2.52055373,2599.2,2599.1,5.21172882]
[1723871456113,2.0166016,2599.2,2599.1,5.21172882]
[1723871458321,3.9396716,2599.2,2599.1,5.21172882]
[1723871458517,1.92307,2599.2,2599.1,5.21172882]
[1723871458817,4.44362373,2599.2,2599.1,4.10372882]
[1723871460815,4.68300643,2599.2,2599.1,4.10372882]
[1723871461021,4.44362373,2599.2,2599.1,4.10372882]
[1723871461231,2.75993647,2599.2,2599.1,4.10372882]
[1723871461717,2.52055373,2599.2,2599.1,4.10372882]
[1723871462618,4.44362373,2599.2,2599.1,0.25652882]
[1723871465220,4.68300203,2599.2,2599.1,0.25652882]
[1723871467425,4.68295757,2599.2,2599.1,0.25652882]
[1723871471425,4.44362373,2599.2,2599.1,0.25652882]
[1723871471619,4.68294458,2599.2,2599.1,0.25652882]
[1723871471822,4.44362373,2599.2,2599.1,0.25652882]
[1723871472016,4.68294233,2599.2,2599.1,0.25652882]
[1723871472419,2.1623886,2599.2,2599.1,0.25652882]
[1723871472615,4.68485145,2599.2,2599.1,0.25652882]
[1723871472815,4.68487046,2599.2,2599.1,0.25652882]
[1723871473028,4.68494542,2599.2,2599.1,0.25652882]
[1723871473220,2.16240761,2599.2,2599.1,0.25652882]
[1723871474621,1.92307,2599.2,2599.1,0.25652882]
[1723871474828,2.16242528,2599.2,2599.1,0.25652882]
[1723871480322,2.76220873,2599.2,2599.1,6.49547882]
[1723871480527,2.88245345,2599.3,2599.2,1.92308]
[1723871480720,2.88245345,2599.3,2599.2,4.38973011]
[1723871480925,3.2519259,2599.4,2599.3,1.923]
[1723871481126,0.72907245,2599.4,2599.3,2.92935011]
[1723871481320,2.02349093,2599.4,2599.3,8.69966666]
[1723871481516,2.02349093,2599.4,2599.3,7.12785011]
[1723871481517,0.00577245,2599.4,2599.3,7.12785011]
[1723871481721,2.02359998,2599.4,2599.3,7.12785011]
[1723871482232,2.02359998,2599.4,2599.3,5.20485011]
[1723871482423,2.39149998,2599.4,2599.3,5.20485011]
[1723871483021,2.39149998,2599.4,2599.3,7.12785011]
[1723871483219,2.39149998,2599.4,2599.3,6.1215]
[1723871483433,2.39149998,2599.4,2599.3,4.1985]
[1723871492331,2.02359998,2599.4,2599.3,6.1215]
[1723871492537,1.51765347,2599.4,2599.3,10.54194856]
[1723871495137,1.88465347,2599.4,2599.3,10.54194856]
[1723871496041,1.88465347,2599.4,2599.3,8.61894856]
[1723871496341,1.88465347,2599.4,2599.3,10.54194856]
[1723871500940,1.88465347,2599.4,2599.3,13.74974856]
[1723871503842,1.88465347,2599.4,2599.3,9.90254856]
[1723871504139,1.88465347,2599.4,2599.3,13.74974856]
[1723871509747,1.88465347,2599.4,2599.3,9.90254856]
[1723871510145,1.88465347,2599.4,2599.3,13.74974856]
[1723871510456,1.88465347,2599.4,2599.3,9.90254856]
[1723871511154,1.88465347,2599.4,2599.3,11.01054856]
[1723871512253,0.37277245,2599.4,2599.3,11.01054856]
[1723871514253,4.31352998,2599.4,2599.3,12.58344856]
[1723871514549,4.31352998,2599.4,2599.3,8.73624856]
[1723871514751,2.29570245,2599.4,2599.3,8.73624856]
[1723871515349,4.31352998,2599.4,2599.3,8.73624856]
[1723871520261,2.39059998,2599.4,2599.3,8.73624856]
[1723871521748,2.02359998,2599.4,2599.3,10.65924856]
[1723871522045,2.02359998,2599.4,2599.3,12.58237211]
[1723871522046,1.51761352,2599.4,2599.3,12.58237211]
[1723871522245,1.51761352,2599.4,2599.3,14.45110275]
[1723871522452,1.51761352,2599.4,2599.3,12.94887211]
[1723871522761,1.51761352,2599.4,2599.3,14.45110275]
[1723871523059,0.00577245,2599.4,2599.3,18.29830275]
[1723871523253,1.01389351,2599.4,2599.3,18.29830275]
[1723871523648,1.51761352,2599.4,2599.3,18.29830275]
[1723871524752,1.51761352,2599.4,2599.3,18.29825459]
[1723871528860,1.51761352,2599.4,2599.3,15.09045459]
[1723871529061,1.51761352,2599.4,2599.3,18.29825459]
[1723871529248,1.51761352,2599.4,2599.3,18.29823402]
[1723871531055,1.51761352,2599.4,2599.3,15.09043402]
[1723871531251,1.51761352,2599.4,2599.3,18.29823402]
[1723871533961,1.51761352,2599.4,2599.3,18.29831906]
[1723871534365,0.00577245,2599.4,2599.3,9.55138842]
[1723871534556,0.00577245,2599.4,2599.3,9.74490302]
[1723871534757,0.00577245,2599.4,2599.3,11.6680926]
[1723871538865,0.00577245,2599.4,2599.3,11.66809716]
[1723871539368,0.00577245,2599.4,2599.3,10.6594427]
[1723871539571,3.94652998,2599.4,2599.3,10.55987843]
[1723871539866,3.94652998,2599.4,2599.3,9.74468429]
[1723871540167,2.02359998,2599.4,2599.3,9.74468429]
[1723871540863,0.00577245,2599.4,2599.3,8.73624856]
[1723871541372,1.92870245,2599.4,2599.3,8.73624856]
[1723871542259,3.94619828,2599.4,2599.3,8.73624856]
[1723871542656,1.92870245,2599.4,2599.3,8.73624856]
[1723871543065,3.94618813,2599.4,2599.3,8.73624856]
[1723871543267,2.02325813,2599.4,2599.3,8.73624856]
[1723871543569,0.00577245,2599.4,2599.3,8.73624856]
[1723871544162,1.92870245,2599.4,2599.3,8.73624856]
[1723871545968,1.92870245,2599.4,2599.3,7.62824856]
[1723871546163,1.92870245,2599.4,2599.3,8.73624856]
[1723871548266,3.94595901,2599.4,2599.3,8.73624856]
[1723871548467,1.92870245,2599.4,2599.3,8.73624856]
[1723871549972,4.4515559,2599.4,2599.3,5.52844856]
[1723871550171,4.69082091,2599.4,2599.3,5.52844856]
[1723871550569,4.4515559,2599.4,2599.3,5.52844856]
[1723871553459,1.92870245,2599.4,2599.3,5.52844856]
[1723871553864,4.4515559,2599.4,2599.3,5.52844856]
[1723871554261,1.92870245,2599.4,2599.3,5.52844856]
[1723871554763,4.4515559,2599.4,2599.3,5.52844856]
[1723871555369,1.92870245,2599.4,2599.3,5.52844856]
[1723871555772,4.4515559,2599.4,2599.3,5.52844856]
[1723871556071,1.92870245,2599.4,2599.3,5.52844856]
[1723871556472,4.4515559,2599.4,2599.3,5.52844856]
[1723871557474,1.92870245,2599.4,2599.3,5.52844856]
[1723871558676,3.94520012,2599.4,2599.3,5.52844856]
[1723871560967,1.92870245,2599.4,2599.3,5.52844856]
[1723871574377,0.00577245,2599.4,2599.3,5.52844856]
[1723871574579,0.00577245,2599.4,2599.3,6.24464856]
[1723871578183,2.5286259,2599.4,2599.3,6.24464856]
[1723871582190,4.4515659,2599.4,2599.3,6.24464856]
[1723871584587,4.4515659,2599.4,2599.3,5.88704856]
[1723871584788,4.69091269,2599.4,2599.3,5.88704856]
[1723871585286,2.16805924,2599.4,2599.3,5.88704856]
[1723871586084,4.69117525,2599.4,2599.3,5.88704856]
[1723871586796,2.76823525,2599.4,2599.3,5.88704856]
[1723871587192,2.52888846,2599.4,2599.3,6.89548429]
[1723871587388,2.52888846,2599.4,2599.3,5.88704856]
[1723871587590,2.7682205,2599.4,2599.3,5.88704856]
[1723871587796,2.52888846,2599.4,2599.3,6.89548429]
[1723871588093,4.69116602,2599.4,2599.3,5.88704856]
[1723871589593,4.69116602,2599.4,2599.3,6.89548429]
[1723871590100,4.69116602,2599.4,2599.3,5.88704856]
[1723871592592,4.69116602,2599.4,2599.3,6.89548429]
[1723871595093,2.52888846,2599.4,2599.3,6.89548429]
[1723871595298,2.76822776,2599.4,2599.3,6.89548429]
[1723871595493,2.52888846,2599.4,2599.3,6.89548429]
[1723871595696,2.76822566,2599.4,2599.3,6.89548429]
[1723871596398,2.52888846,2599.4,2599.3,6.89548429]
[1723871597996,2.76822102,2599.4,2599.3,6.89548429]
[1723871598301,2.52888846,2599.4,2599.3,6.89548429]
[1723871599603,2.52888846,2599.4,2599.3,5.88704856]
[1723871599904,0.00577245,2599.4,2599.3,5.88704856]
[1723871600104,0.00577245,2599.4,2599.3,7.81005856]
[1723871600305,0.00577245,2599.4,2599.3,5.88704856]
[1723871600805,2.7685896,2599.4,2599.3,5.88704856]
[1723871601008,2.52925381,2599.4,2599.3,5.88704856]
[1723871601302,2.76858825,2599.4,2599.3,6.89595099]
[1723871602505,2.52925381,2599.4,2599.3,6.89595099]
[1723871603411,4.69152583,2599.4,2599.3,5.42935099]
[1723871603705,2.16807275,2599.4,2599.3,6.53735099]
[1723871603893,0.24513275,2599.4,2599.3,6.53735099]
[1723871604499,0.00577245,2599.4,2599.3,6.53735099]
[1723871605106,0.00577245,2599.4,2599.3,5.52844856]
[1723871605508,0.24510484,2599.4,2599.3,5.52844856]
[1723871605704,0.00577245,2599.4,2599.3,7.45145856]
[1723871606002,0.00577245,2599.4,2599.3,11.66565856]
[1723871606702,2.02447618,2599.4,2599.3,15.51175301]
[1723871607006,1.00916662,2599.5,2599.4,3.84588]
[1723871607205,1.00916662,2599.6,2599.5,1.92286]
[1723871607397,1.00916662,2599.8,2599.5,13.31208872]
[1723871607602,1.00916662,2599.8,2599.7,3.43326458]
[1723871607801,1.00916662,2599.8,2599.7,3.84580445]
[1723871608007,1.00916662,2599.8,2599.7,12.39410872]
[1723871608304,1.00916662,2599.9,2599.8,1.92264]
[1723871608502,1.00916662,2599.9,2599.8,9.16727008]
[1723871608701,1.00916662,2599.9,2599.8,17.41380482]
[1723871609108,1.01493907,2600.0,2599.9,1.92257]
[1723871609505,1.01493907,2600.0,2599.9,6.11153507]
[1723871609705,1.01493907,2600.0,2599.9,9.31933507]
[1723871611514,0.00577245,2600.0,2599.9,9.31933507]
[1723871617221,0.00577245,2600.0,2599.9,6.11153507]
[1723871617412,0.00577245,2600.0,2599.9,9.31933507]
[1723871617922,0.00577245,2600.0,2599.9,6.11153507]
[1723871618114,0.00577245,2600.0,2599.9,9.31933507]
[1723871618718,0.00577245,2600.0,2599.9,6.11153507]
[1723871619714,0.00577245,2600.0,2599.9,9.31933507]
[1723871620123,0.00577245,2600.0,2599.9,6.11153507]
[1723871620415,0.00577245,2600.0,2599.9,9.31933507]
[1723871621711,0.00577245,2600.0,2599.9,6.11153507]
[1723871622123,0.00577245,2600.0,2599.9,9.31933507]
[1723871623919,0.00577245,2600.0,2599.9,9.68753507]
[1723871624517,0.00577245,2600.0,2599.9,10.04233507]
[1723871626008,0.00577245,2600.0,2599.9,6.83453507]
[1723871626416,0.00577245,2600.0,2599.9,10.04233507]
[1723871629116,0.00577245,2600.0,2599.9,6.83453507]
[1723871629726,0.00577245,2600.0,2599.9,10.04233507]
[1723871629915,0.00577245,2600.0,2599.9,6.83453507]
[1723871630318,0.00577245,2600.0,2599.9,10.04233507]
[1723871630921,0.00577245,2600.0,2599.9,6.83453507]
[1723871631614,0.00577245,2600.0,2599.9,8.11976507]
[1723871632122,0.72347245,2600.0,2599.9,9.22776507]
[1723871632321,2.64596245,2600.0,2599.9,8.50476507]
[1723871632823,0.72347245,2600.0,2599.9,8.50476507]
[1723871636117,1.73263907,2600.0,2599.9,8.50476507]
[1723871638726,1.73263907,2600.0,2599.9,5.29696507]
[1723871638926,1.73263907,2600.0,2599.9,8.50476507]
[1723871639525,1.73263907,2600.0,2599.9,8.87766507]
[1723871640123,1.73263907,2600.0,2599.9,10.80023507]
[1723871641524,1.73263907,2600.0,2599.9,7.59243507]
[1723871641525,1.38913907,2600.0,2599.9,7.59243507]
[1723871641725,1.38913907,2600.0,2599.9,10.80023507]